[Event "Titled Tuesday Blitz July 4 Early 2023"]
[White "Koellner, Ruben Gideon"]
[Black "Demin, Vladimir"]
[WhiteFideId "12993093"]
[BlackFideId "4167457"]
[WhiteElo "2655"]
[BlackElo "2538"]
[Result "1-0"]
[Round "8"]
[TimeControl "180+2"]
[Date "2023.07.04"]
[WhiteClock "0:02:13"]
[BlackClock "0:01:38"]
[Board "64"]

1. d4 {[%clk 0:03:00]}  Nf6 {[%clk 0:02:59]} 2. Nf3 {[%clk 0:03:01]}  d5 {[%clk 0:02:59]} 3. Nbd2 {[%clk 0:03:01]}  e6 {[%clk 0:02:55]} 4. e3 {[%clk 0:03:02]}  c5 {[%clk 0:02:53]} 5. c4 {[%clk 0:03:02]}  Nc6 {[%clk 0:02:51]} 6. b3 {[%clk 0:03:01]}  cxd4 {[%clk 0:02:45]} 7. exd4 {[%clk 0:03:00]}  Bb4 {[%clk 0:02:46]} 8. Bb2 {[%clk 0:02:55]}  Ne4 {[%clk 0:02:45]} 9. a3 {[%clk 0:02:51]}  Bxd2+ {[%clk 0:02:41]} 10. Nxd2 {[%clk 0:02:52]}  Nxd2 {[%clk 0:02:40]} 11. Qxd2 {[%clk 0:02:53]}  O-O {[%clk 0:02:40]} 12. Be2 {[%clk 0:02:52]}  Qb6 {[%clk 0:02:37]} 13. Qc3 {[%clk 0:02:40]}  Ne7 {[%clk 0:02:32]} 14. c5 {[%clk 0:02:38]}  Qc7 {[%clk 0:02:31]} 15. O-O {[%clk 0:02:38]}  b6 {[%clk 0:02:28]} 16. b4 {[%clk 0:02:38]}  a5 {[%clk 0:02:27]} 17. g3 {[%clk 0:02:35]}  Bd7 {[%clk 0:02:15]} 18. b5 {[%clk 0:02:34]}  Rfc8 {[%clk 0:02:15]} 19. c6 {[%clk 0:02:33]}  Be8 {[%clk 0:02:16]} 20. a4 {[%clk 0:02:34]}  Nf5 {[%clk 0:02:14]} 21. Bd3 {[%clk 0:02:28]}  Nd6 {[%clk 0:02:07]} 22. Ba3 {[%clk 0:02:28]}  Ne4 {[%clk 0:02:05]} 23. Bxe4 {[%clk 0:02:27]}  dxe4 {[%clk 0:02:06]} 24. Qe3 {[%clk 0:02:27]}  f5 {[%clk 0:02:06]} 25. Rfd1 {[%clk 0:02:26]}  Bf7 {[%clk 0:02:06]} 26. f3 {[%clk 0:02:14]}  exf3 {[%clk 0:02:02]} 27. Qxf3 {[%clk 0:02:14]}  Rd8 {[%clk 0:02:02]} 28. d5 {[%clk 0:02:15]}  Rxd5 {[%clk 0:01:59]} 29. Rxd5 {[%clk 0:02:15]}  exd5 {[%clk 0:02:00]} 30. Qxf5 {[%clk 0:02:15]}  Re8 {[%clk 0:01:55]} 31. Rf1 {[%clk 0:02:15]}  h6 {[%clk 0:01:52]} 32. Bd6 {[%clk 0:02:13]}  Qa7 {[%clk 0:01:49]} 33. c7 {[%clk 0:02:13]}  Be6 {[%clk 0:01:39]} 34. Qxe6+ {[%clk 0:02:12]}  Rxe6 {[%clk 0:01:38]} 35. c8=Q+ {[%clk 0:02:13]} 1-0


[Site "https://www.chess.com"]

[Event "Titled Tuesday Blitz July 4 Early 2023"]
[White "Kuzmin, Roman"]
[Black "Tan, Jun Ying"]
[WhiteFideId "44134932"]
[BlackFideId "5710413"]
[WhiteElo "2533"]
[BlackElo "2640"]
[Result "0-1"]
[Round "8"]
[TimeControl "180+2"]
[Date "2023.07.04"]
[WhiteClock "0:00:25"]
[BlackClock "0:00:12"]
[Board "66"]

1. e4 {[%clk 0:03:00]}  g6 {[%clk 0:03:00]} 2. d4 {[%clk 0:03:00]}  Bg7 {[%clk 0:03:01]} 3. Nc3 {[%clk 0:03:01]}  d5 {[%clk 0:03:01]} 4. exd5 {[%clk 0:02:54]}  Nf6 {[%clk 0:02:59]} 5. Bc4 {[%clk 0:02:53]}  a6 {[%clk 0:02:58]} 6. a4 {[%clk 0:02:52]}  Nbd7 {[%clk 0:02:57]} 7. a5 {[%clk 0:02:52]}  b5 {[%clk 0:02:54]} 8. axb6 {[%clk 0:02:52]}  Nxb6 {[%clk 0:02:54]} 9. Bb3 {[%clk 0:02:46]}  Bb7 {[%clk 0:02:54]} 10. Nf3 {[%clk 0:02:44]}  O-O {[%clk 0:02:54]} 11. O-O {[%clk 0:02:44]}  Nfxd5 {[%clk 0:02:54]} 12. Nxd5 {[%clk 0:02:43]}  Bxd5 {[%clk 0:02:49]} 13. Bxd5 {[%clk 0:02:42]}  Qxd5 {[%clk 0:02:50]} 14. Re1 {[%clk 0:02:38]}  Rfd8 {[%clk 0:02:45]} 15. Bf4 {[%clk 0:02:34]}  Nc4 {[%clk 0:02:25]} 16. b3 {[%clk 0:02:29]}  Nd6 {[%clk 0:02:26]} 17. c4 {[%clk 0:02:13]}  Qf5 {[%clk 0:02:25]} 18. Be5 {[%clk 0:02:14]}  Bxe5 {[%clk 0:01:53]} 19. Rxe5 {[%clk 0:02:15]}  Qf6 {[%clk 0:01:52]} 20. Qe2 {[%clk 0:02:13]}  Nf5 {[%clk 0:01:51]} 21. Qe4 {[%clk 0:02:08]}  Rab8 {[%clk 0:01:47]} 22. Rb1 {[%clk 0:01:47]}  a5 {[%clk 0:01:30]} 23. Rxa5 {[%clk 0:01:22]}  Nxd4 {[%clk 0:01:28]} 24. Nxd4 {[%clk 0:01:23]}  Rxd4 {[%clk 0:01:27]} 25. Qe3 {[%clk 0:01:23]}  Rxc4 {[%clk 0:01:23]} 26. Re5 {[%clk 0:01:03]}  e6 {[%clk 0:01:06]} 27. h3 {[%clk 0:00:53]}  Rcb4 {[%clk 0:01:05]} 28. Rc5 {[%clk 0:00:53]}  R8b7 {[%clk 0:01:01]} 29. Rc3 {[%clk 0:00:51]}  Kg7 {[%clk 0:00:59]} 30. Rbc1 {[%clk 0:00:50]}  c6 {[%clk 0:00:53]} 31. Rd3 {[%clk 0:00:45]}  Qb2 {[%clk 0:00:50]} 32. Rdc3 {[%clk 0:00:28]}  Rxb3 {[%clk 0:00:40]} 33. Qd4+ {[%clk 0:00:29]}  f6 {[%clk 0:00:33]} 34. Qc4 {[%clk 0:00:29]}  Rxc3 {[%clk 0:00:28]} 35. Rxc3 {[%clk 0:00:30]}  e5 {[%clk 0:00:12]} 36. Qxc6 {[%clk 0:00:29]}  Rf7 {[%clk 0:00:12]} 37. Rd3 {[%clk 0:00:27]}  Qb1+ {[%clk 0:00:12]} 38. Kh2 {[%clk 0:00:25]}  Qxd3 {[%clk 0:00:12]} 0-1


[Site "https://www.chess.com"]

[Event "Titled Tuesday Blitz July 4 Early 2023"]
[White "Sreyas Payyappat"]
[Black "Niekras, Dawid"]
[WhiteFideId "46674969"]
[BlackFideId "1160451"]
[WhiteElo "2528"]
[BlackElo "2623"]
[Result "0-1"]
[Round "8"]
[TimeControl "180+2"]
[Date "2023.07.04"]
[WhiteClock "0:01:45"]
[BlackClock "0:01:43"]
[Board "69"]

1. e4 {[%clk 0:02:59]}  c5 {[%clk 0:02:59]} 2. Nf3 {[%clk 0:02:56]}  e6 {[%clk 0:02:57]} 3. d4 {[%clk 0:02:56]}  cxd4 {[%clk 0:02:58]} 4. Nxd4 {[%clk 0:02:55]}  Nc6 {[%clk 0:02:58]} 5. Nc3 {[%clk 0:02:53]}  Qc7 {[%clk 0:02:59]} 6. Be3 {[%clk 0:02:53]}  a6 {[%clk 0:02:58]} 7. Be2 {[%clk 0:02:53]}  Nf6 {[%clk 0:02:59]} 8. O-O {[%clk 0:02:54]}  Be7 {[%clk 0:02:59]} 9. f4 {[%clk 0:02:54]}  d6 {[%clk 0:03:00]} 10. Bf3 {[%clk 0:02:54]}  O-O {[%clk 0:02:58]} 11. g4 {[%clk 0:02:55]}  Nxd4 {[%clk 0:02:49]} 12. Bxd4 {[%clk 0:02:52]}  e5 {[%clk 0:02:49]} 13. Be3 {[%clk 0:02:43]}  exf4 {[%clk 0:02:48]} 14. Bxf4 {[%clk 0:02:44]}  Be6 {[%clk 0:02:49]} 15. g5 {[%clk 0:02:24]}  Nd7 {[%clk 0:02:47]} 16. Bg4 {[%clk 0:02:24]}  Qb6+ {[%clk 0:01:50]} 17. Kh1 {[%clk 0:02:09]}  Qxb2 {[%clk 0:01:50]} 18. Bxe6 {[%clk 0:01:45]}  fxe6 {[%clk 0:01:51]} 19. Bxd6 {[%clk 0:01:45]}  Rxf1+ {[%clk 0:01:47]} 20. Qxf1 {[%clk 0:01:46]}  Bxd6 {[%clk 0:01:47]} 21. Rd1 {[%clk 0:01:45]}  Qxc3 {[%clk 0:01:43]} 22. Rxd6 {[%clk 0:01:45]} 0-1


[Site "https://www.chess.com"]

[Event "Titled Tuesday Blitz July 4 Early 2023"]
[White "Korkmaz, Necmettin"]
[Black "Burmakin, Vladimir"]
[WhiteFideId "6303285"]
[BlackFideId "4105109"]
[WhiteElo "2514"]
[BlackElo "2617"]
[Result "0-1"]
[Round "8"]
[TimeControl "180+2"]
[Date "2023.07.04"]
[WhiteClock "0:00:45"]
[BlackClock "0:00:42"]
[Board "73"]

1. e4 {[%clk 0:03:00]}  c6 {[%clk 0:03:00]} 2. d4 {[%clk 0:03:00]}  d5 {[%clk 0:03:00]} 3. e5 {[%clk 0:03:00]}  Bf5 {[%clk 0:02:59]} 4. Nd2 {[%clk 0:02:58]}  e6 {[%clk 0:02:59]} 5. Nb3 {[%clk 0:02:57]}  Nd7 {[%clk 0:02:58]} 6. Nf3 {[%clk 0:02:56]}  h6 {[%clk 0:02:56]} 7. Be2 {[%clk 0:02:54]}  Ne7 {[%clk 0:02:56]} 8. O-O {[%clk 0:02:54]}  Bh7 {[%clk 0:02:56]} 9. Re1 {[%clk 0:02:50]}  Ng6 {[%clk 0:02:56]} 10. a4 {[%clk 0:02:47]}  a5 {[%clk 0:02:53]} 11. c3 {[%clk 0:02:46]}  Be7 {[%clk 0:02:52]} 12. Be3 {[%clk 0:02:46]}  O-O {[%clk 0:02:51]} 13. Nc1 {[%clk 0:02:42]}  c5 {[%clk 0:02:50]} 14. Nd3 {[%clk 0:02:41]}  b6 {[%clk 0:02:48]} 15. g3 {[%clk 0:02:34]}  Qb8 {[%clk 0:02:44]} 16. h4 {[%clk 0:02:33]}  Rc8 {[%clk 0:02:42]} 17. h5 {[%clk 0:02:32]}  Ngf8 {[%clk 0:02:41]} 18. Qd2 {[%clk 0:02:33]}  cxd4 {[%clk 0:02:39]} 19. Nxd4 {[%clk 0:02:27]}  Nxe5 {[%clk 0:02:28]} 20. Bf4 {[%clk 0:02:26]}  Bd6 {[%clk 0:02:28]} 21. Nb5 {[%clk 0:02:23]}  Nc4 {[%clk 0:02:23]} 22. Qc1 {[%clk 0:02:17]}  Bxf4 {[%clk 0:02:21]} 23. Nxf4 {[%clk 0:02:17]}  Nd6 {[%clk 0:02:12]} 24. Bd3 {[%clk 0:02:14]}  Bxd3 {[%clk 0:02:09]} 25. Nxd3 {[%clk 0:02:14]}  Nxb5 {[%clk 0:02:09]} 26. axb5 {[%clk 0:02:15]}  Nd7 {[%clk 0:02:01]} 27. Qd1 {[%clk 0:02:12]}  Qd6 {[%clk 0:01:58]} 28. Qg4 {[%clk 0:02:11]}  Rc4 {[%clk 0:01:55]} 29. f4 {[%clk 0:02:09]}  Rac8 {[%clk 0:01:53]} 30. Rad1 {[%clk 0:02:08]}  Nf6 {[%clk 0:01:49]} 31. Qf3 {[%clk 0:02:05]}  Re4 {[%clk 0:01:38]} 32. Kg2 {[%clk 0:02:03]}  Qd7 {[%clk 0:01:32]} 33. g4 {[%clk 0:01:52]}  Rxe1 {[%clk 0:01:25]} 34. Rxe1 {[%clk 0:01:43]}  Qxb5 {[%clk 0:01:24]} 35. g5 {[%clk 0:01:43]}  hxg5 {[%clk 0:01:23]} 36. fxg5 {[%clk 0:01:43]}  Ne4 {[%clk 0:01:23]} 37. h6 {[%clk 0:01:29]}  Nxg5 {[%clk 0:01:15]} 38. Qg3 {[%clk 0:01:29]}  gxh6 {[%clk 0:01:05]} 39. Rh1 {[%clk 0:01:27]}  Kg7 {[%clk 0:01:04]} 40. Rh5 {[%clk 0:01:21]}  f6 {[%clk 0:01:00]} 41. Qe3 {[%clk 0:01:00]}  Qc4 {[%clk 0:00:51]} 42. Nf4 {[%clk 0:00:58]}  Qe4+ {[%clk 0:00:49]} 43. Qxe4 {[%clk 0:00:59]}  dxe4 {[%clk 0:00:49]} 44. Kf2 {[%clk 0:00:57]}  f5 {[%clk 0:00:47]} 45. Rh1 {[%clk 0:00:53]}  Rd8 {[%clk 0:00:47]} 46. Rg1 {[%clk 0:00:49]}  Kf6 {[%clk 0:00:44]} 47. Ke3 {[%clk 0:00:47]}  e5 {[%clk 0:00:42]} 48. Nh5+ {[%clk 0:00:47]}  Kg6 {[%clk 0:00:42]} 49. Ng3 {[%clk 0:00:45]}  f4+ {[%clk 0:00:42]} 0-1


[Site "https://www.chess.com"]

[Event "Titled Tuesday Blitz July 4 Early 2023"]
[White "Fantastic_Power"]
[Black "Filgueira, Hernan"]
[BlackFideId "101770"]
[WhiteElo "2511"]
[BlackElo "2615"]
[Result "1-0"]
[Round "8"]
[TimeControl "180+2"]
[Date "2023.07.04"]
[WhiteClock "0:00:07"]
[BlackClock "0:00:21"]
[Board "74"]

1. e4 {[%clk 0:03:00]}  d5 {[%clk 0:02:58]} 2. exd5 {[%clk 0:03:00]}  Qxd5 {[%clk 0:02:59]} 3. Nc3 {[%clk 0:03:01]}  Qd6 {[%clk 0:02:59]} 4. d4 {[%clk 0:03:01]}  c6 {[%clk 0:03:00]} 5. Bc4 {[%clk 0:02:44]}  Nf6 {[%clk 0:02:59]} 6. Nf3 {[%clk 0:02:44]}  Bg4 {[%clk 0:02:58]} 7. Be3 {[%clk 0:02:43]}  e6 {[%clk 0:02:57]} 8. h3 {[%clk 0:02:42]}  Bh5 {[%clk 0:02:55]} 9. g4 {[%clk 0:02:42]}  Bg6 {[%clk 0:02:55]} 10. Ne5 {[%clk 0:02:43]}  Nbd7 {[%clk 0:02:53]} 11. f4 {[%clk 0:02:37]}  Nxe5 {[%clk 0:02:27]} 12. fxe5 {[%clk 0:02:38]}  Qb4 {[%clk 0:02:27]} 13. Bb3 {[%clk 0:02:02]}  Ne4 {[%clk 0:02:21]} 14. a3 {[%clk 0:01:34]}  Qa5 {[%clk 0:02:15]} 15. O-O {[%clk 0:01:24]}  Nxc3 {[%clk 0:02:10]} 16. Qd2 {[%clk 0:01:20]}  h5 {[%clk 0:01:59]} 17. g5 {[%clk 0:01:05]}  O-O-O {[%clk 0:01:47]} 18. bxc3 {[%clk 0:00:44]}  c5 {[%clk 0:01:37]} 19. Rfd1 {[%clk 0:00:25]}  Bf5 {[%clk 0:01:26]} 20. Kh2 {[%clk 0:00:24]}  cxd4 {[%clk 0:01:21]} 21. cxd4 {[%clk 0:00:25]}  Qxd2+ {[%clk 0:01:20]} 22. Rxd2 {[%clk 0:00:26]}  Be7 {[%clk 0:01:07]} 23. c4 {[%clk 0:00:24]}  b6 {[%clk 0:01:04]} 24. d5 {[%clk 0:00:17]}  exd5 {[%clk 0:00:58]} 25. cxd5 {[%clk 0:00:18]}  Rd7 {[%clk 0:00:44]} 26. d6 {[%clk 0:00:17]}  Bd8 {[%clk 0:00:43]} 27. Ba4 {[%clk 0:00:13]}  Kb8 {[%clk 0:00:43]} 28. Bxd7 {[%clk 0:00:13]}  Bxd7 {[%clk 0:00:43]} 29. Rf1 {[%clk 0:00:13]}  Be6 {[%clk 0:00:41]} 30. Rdf2 {[%clk 0:00:13]}  Rf8 {[%clk 0:00:37]} 31. g6 {[%clk 0:00:11]}  f6 {[%clk 0:00:37]} 32. exf6 {[%clk 0:00:12]}  Bxf6 {[%clk 0:00:37]} 33. Bd4 {[%clk 0:00:11]}  Bxd4 {[%clk 0:00:32]} 34. Rxf8+ {[%clk 0:00:12]}  Kb7 {[%clk 0:00:32]} 35. Rd1 {[%clk 0:00:06]}  Be5+ {[%clk 0:00:31]} 36. Kg2 {[%clk 0:00:06]}  Bd7 {[%clk 0:00:26]} 37. Rf7 {[%clk 0:00:06]}  Kc8 {[%clk 0:00:26]} 38. Rc1+ {[%clk 0:00:04]}  Kd8 {[%clk 0:00:26]} 39. Rf8+ {[%clk 0:00:04]}  Be8 {[%clk 0:00:23]} 40. Rxe8+ {[%clk 0:00:05]}  Kxe8 {[%clk 0:00:23]} 41. Re1 {[%clk 0:00:06]}  Kd7 {[%clk 0:00:23]} 42. Rxe5 {[%clk 0:00:06]}  Kxd6 {[%clk 0:00:21]} 43. Rxh5 {[%clk 0:00:07]} 1-0


[Site "https://www.chess.com"]

[Event "Titled Tuesday Blitz July 4 Early 2023"]
[White "Sadykov, Ramil"]
[Black "Pham, Le Thao Nguyen"]
[WhiteFideId "24113590"]
[BlackFideId "12401226"]
[WhiteElo "2610"]
[BlackElo "2504"]
[Result "0-1"]
[Round "8"]
[TimeControl "180+2"]
[Date "2023.07.04"]
[WhiteClock "0:00:07"]
[BlackClock "0:00:20"]
[Board "75"]

1. d4 {[%clk 0:02:57]}  d5 {[%clk 0:02:59]} 2. Nf3 {[%clk 0:02:56]}  Nf6 {[%clk 0:02:59]} 3. g3 {[%clk 0:02:55]}  c6 {[%clk 0:02:57]} 4. Bg2 {[%clk 0:02:55]}  Bf5 {[%clk 0:02:57]} 5. c4 {[%clk 0:02:54]}  e6 {[%clk 0:02:57]} 6. O-O {[%clk 0:02:54]}  Nbd7 {[%clk 0:02:52]} 7. Nc3 {[%clk 0:02:48]}  h6 {[%clk 0:02:51]} 8. Nd2 {[%clk 0:02:40]}  Nb6 {[%clk 0:02:41]} 9. cxd5 {[%clk 0:01:52]}  exd5 {[%clk 0:02:38]} 10. f3 {[%clk 0:01:35]}  Be7 {[%clk 0:02:34]} 11. Nb3 {[%clk 0:01:33]}  O-O {[%clk 0:02:10]} 12. e4 {[%clk 0:01:33]}  dxe4 {[%clk 0:02:11]} 13. fxe4 {[%clk 0:01:34]}  Be6 {[%clk 0:02:11]} 14. Nc5 {[%clk 0:01:30]}  Bxc5 {[%clk 0:02:05]} 15. dxc5 {[%clk 0:01:31]}  Nc4 {[%clk 0:01:58]} 16. b3 {[%clk 0:01:21]}  Ne5 {[%clk 0:01:55]} 17. Bf4 {[%clk 0:01:21]}  Qxd1 {[%clk 0:01:38]} 18. Rfxd1 {[%clk 0:01:19]}  Nfd7 {[%clk 0:01:38]} 19. b4 {[%clk 0:01:00]}  Rfe8 {[%clk 0:01:26]} 20. b5 {[%clk 0:00:55]}  f6 {[%clk 0:01:21]} 21. bxc6 {[%clk 0:00:54]}  bxc6 {[%clk 0:01:22]} 22. Rd6 {[%clk 0:00:43]}  Nxc5 {[%clk 0:01:11]} 23. Bxe5 {[%clk 0:00:43]}  fxe5 {[%clk 0:01:11]} 24. Rxc6 {[%clk 0:00:44]}  Rac8 {[%clk 0:01:06]} 25. Rd6 {[%clk 0:00:41]}  Nb7 {[%clk 0:00:53]} 26. Rxe6 {[%clk 0:00:39]}  Rxe6 {[%clk 0:00:48]} 27. Bh3 {[%clk 0:00:40]}  Rec6 {[%clk 0:00:29]} 28. Bxc8 {[%clk 0:00:38]}  Rxc8 {[%clk 0:00:30]} 29. Nd5 {[%clk 0:00:38]}  Rc2 {[%clk 0:00:29]} 30. a4 {[%clk 0:00:13]}  Nc5 {[%clk 0:00:27]} 31. a5 {[%clk 0:00:13]}  Nxe4 {[%clk 0:00:26]} 32. a6 {[%clk 0:00:11]}  Ng5 {[%clk 0:00:24]} 33. Rb1 {[%clk 0:00:09]}  Ra2 {[%clk 0:00:20]} 34. Nc7 {[%clk 0:00:08]}  Nf3+ {[%clk 0:00:20]} 35. Kf1 {[%clk 0:00:07]}  Nd2+ {[%clk 0:00:20]} 0-1


[Site "https://www.chess.com"]

[Event "Titled Tuesday Blitz July 4 Early 2023"]
[White "Eynullayev, Atilla"]
[Black "Palczert, Matyas"]
[WhiteFideId "13413570"]
[BlackFideId "784958"]
[WhiteElo "2489"]
[BlackElo "2607"]
[Result "0-1"]
[Round "8"]
[TimeControl "180+2"]
[Date "2023.07.04"]
[WhiteClock "0:00:00"]
[BlackClock "0:00:10"]
[Board "77"]

1. e4 {[%clk 0:03:00]}  c5 {[%clk 0:02:59]} 2. Nf3 {[%clk 0:03:01]}  e6 {[%clk 0:02:56]} 3. d4 {[%clk 0:03:00]}  cxd4 {[%clk 0:02:57]} 4. Nxd4 {[%clk 0:03:00]}  Nc6 {[%clk 0:02:57]} 5. Nc3 {[%clk 0:03:00]}  Qc7 {[%clk 0:02:57]} 6. g3 {[%clk 0:02:59]}  a6 {[%clk 0:02:56]} 7. Bg2 {[%clk 0:03:00]}  Nf6 {[%clk 0:02:55]} 8. O-O {[%clk 0:02:59]}  Nxd4 {[%clk 0:02:55]} 9. Qxd4 {[%clk 0:03:00]}  Bc5 {[%clk 0:02:55]} 10. Bf4 {[%clk 0:03:01]}  d6 {[%clk 0:02:55]} 11. Qd3 {[%clk 0:02:45]}  Nd7 {[%clk 0:02:54]} 12. Rad1 {[%clk 0:02:35]}  Ne5 {[%clk 0:02:52]} 13. Qe2 {[%clk 0:02:36]}  O-O {[%clk 0:02:49]} 14. Kh1 {[%clk 0:02:36]}  b5 {[%clk 0:02:48]} 15. Bc1 {[%clk 0:02:36]}  Bb7 {[%clk 0:02:44]} 16. f4 {[%clk 0:02:36]}  Nc6 {[%clk 0:02:37]} 17. g4 {[%clk 0:02:18]}  Nd4 {[%clk 0:02:34]} 18. Qf2 {[%clk 0:01:59]}  Ba7 {[%clk 0:02:15]} 19. Be3 {[%clk 0:01:53]}  e5 {[%clk 0:02:09]} 20. Nd5 {[%clk 0:01:25]}  Bxd5 {[%clk 0:02:08]} 21. exd5 {[%clk 0:01:25]}  f5 {[%clk 0:01:46]} 22. c3 {[%clk 0:01:16]}  fxg4 {[%clk 0:01:34]} 23. cxd4 {[%clk 0:01:16]}  exf4 {[%clk 0:01:34]} 24. Bxf4 {[%clk 0:01:10]}  g5 {[%clk 0:01:32]} 25. Qg3 {[%clk 0:00:40]}  gxf4 {[%clk 0:01:31]} 26. Qxg4+ {[%clk 0:00:40]}  Qg7 {[%clk 0:01:28]} 27. Rxf4 {[%clk 0:00:41]}  Qxg4 {[%clk 0:00:49]} 28. Rxg4+ {[%clk 0:00:41]}  Kh8 {[%clk 0:00:49]} 29. Re1 {[%clk 0:00:37]}  Rac8 {[%clk 0:00:43]} 30. h4 {[%clk 0:00:23]}  Rc4 {[%clk 0:00:34]} 31. Ree4 {[%clk 0:00:17]}  Rg8 {[%clk 0:00:19]} 32. Rxg8+ {[%clk 0:00:07]}  Kxg8 {[%clk 0:00:19]} 33. Re6 {[%clk 0:00:06]}  Bxd4 {[%clk 0:00:17]} 34. Bh3 {[%clk 0:00:04]}  Be5 {[%clk 0:00:17]} 35. b3 {[%clk 0:00:04]}  Rc1+ {[%clk 0:00:16]} 36. Kg2 {[%clk 0:00:04]}  Rc2+ {[%clk 0:00:17]} 37. Kf3 {[%clk 0:00:05]}  Rc3+ {[%clk 0:00:17]} 38. Kg2 {[%clk 0:00:04]}  Rg3+ {[%clk 0:00:17]} 39. Kh2 {[%clk 0:00:05]}  Kf7 {[%clk 0:00:16]} 40. Bf5 {[%clk 0:00:03]}  Rf3+ {[%clk 0:00:15]} 41. Rxe5 {[%clk 0:00:03]}  dxe5 {[%clk 0:00:15]} 42. Bxh7 {[%clk 0:00:04]}  Ke7 {[%clk 0:00:11]} 43. Kg2 {[%clk 0:00:02]}  Rf7 {[%clk 0:00:11]} 44. Be4 {[%clk 0:00:00]}  Rf4 {[%clk 0:00:10]} 0-1


[Site "https://www.chess.com"]

[Event "Titled Tuesday Blitz July 4 Early 2023"]
[White "Begunov, Konstantin"]
[Black "Pinheiro, Iung Alicio de O."]
[WhiteFideId "4118510"]
[BlackFideId "2104350"]
[WhiteElo "2466"]
[BlackElo "2597"]
[Result "1-0"]
[Round "8"]
[TimeControl "180+2"]
[Date "2023.07.04"]
[WhiteClock "0:00:16"]
[BlackClock "0:00:00"]
[Board "78"]

1. d4 {[%clk 0:03:00]}  Nf6 {[%clk 0:02:59]} 2. c4 {[%clk 0:03:00]}  e5 {[%clk 0:02:58]} 3. dxe5 {[%clk 0:03:00]}  Ng4 {[%clk 0:02:57]} 4. Bf4 {[%clk 0:03:00]}  Nc6 {[%clk 0:02:54]} 5. Nf3 {[%clk 0:02:59]}  Bb4+ {[%clk 0:02:53]} 6. Nbd2 {[%clk 0:02:59]}  Qe7 {[%clk 0:02:52]} 7. e3 {[%clk 0:02:59]}  Ngxe5 {[%clk 0:02:34]} 8. Be2 {[%clk 0:02:59]}  Nxf3+ {[%clk 0:02:23]} 9. Bxf3 {[%clk 0:02:59]}  Ne5 {[%clk 0:02:22]} 10. Be2 {[%clk 0:02:59]}  O-O {[%clk 0:02:12]} 11. O-O {[%clk 0:02:58]}  Bxd2 {[%clk 0:02:05]} 12. Qxd2 {[%clk 0:02:59]}  d6 {[%clk 0:02:05]} 13. Qc3 {[%clk 0:02:59]}  b6 {[%clk 0:02:01]} 14. b4 {[%clk 0:02:59]}  Bb7 {[%clk 0:01:49]} 15. c5 {[%clk 0:02:55]}  Ng6 {[%clk 0:01:26]} 16. Bg3 {[%clk 0:02:40]}  f5 {[%clk 0:01:25]} 17. cxd6 {[%clk 0:02:39]}  cxd6 {[%clk 0:01:25]} 18. Qd4 {[%clk 0:02:19]}  f4 {[%clk 0:01:20]} 19. Bc4+ {[%clk 0:02:18]}  Kh8 {[%clk 0:00:47]} 20. exf4 {[%clk 0:02:17]}  Rae8 {[%clk 0:00:36]} 21. Bb5 {[%clk 0:02:06]}  Rd8 {[%clk 0:00:32]} 22. Rfe1 {[%clk 0:02:04]}  Qf7 {[%clk 0:00:32]} 23. Bc4 {[%clk 0:01:31]}  Qf5 {[%clk 0:00:27]} 24. Bd3 {[%clk 0:01:25]}  Qh5 {[%clk 0:00:24]} 25. f5 {[%clk 0:01:17]}  Ne5 {[%clk 0:00:20]} 26. Bxe5 {[%clk 0:00:35]}  dxe5 {[%clk 0:00:21]} 27. Qe3 {[%clk 0:00:34]}  Qg4 {[%clk 0:00:10]} 28. Be4 {[%clk 0:00:27]}  Bxe4 {[%clk 0:00:04]} 29. Qxe4 {[%clk 0:00:27]}  Qxe4 {[%clk 0:00:04]} 30. Rxe4 {[%clk 0:00:27]}  Rxf5 {[%clk 0:00:05]} 31. Rae1 {[%clk 0:00:25]}  Rd2 {[%clk 0:00:04]} 32. f3 {[%clk 0:00:19]}  Rxa2 {[%clk 0:00:03]} 33. Rxe5 {[%clk 0:00:19]}  Rxe5 {[%clk 0:00:03]} 34. Rxe5 {[%clk 0:00:20]}  h6 {[%clk 0:00:04]} 35. b5 {[%clk 0:00:17]}  Kg8 {[%clk 0:00:04]} 36. Re7 {[%clk 0:00:17]}  Kf8 {[%clk 0:00:04]} 37. Rb7 {[%clk 0:00:16]}  Kg8 {[%clk 0:00:02]} 38. h4 {[%clk 0:00:16]}  h5 {[%clk 0:00:00]} 39. Kh2 {[%clk 0:00:16]} 1-0


[Site "https://www.chess.com"]

[Event "Titled Tuesday Blitz July 4 Early 2023"]
[White "Gontcharov, Vladislav"]
[Black "Streltsov, Alexey"]
[WhiteFideId "4123492"]
[BlackFideId "24104434"]
[WhiteElo "2577"]
[BlackElo "2453"]
[Result "0-1"]
[Round "8"]
[TimeControl "180+2"]
[Date "2023.07.04"]
[WhiteClock "0:00:10"]
[BlackClock "0:00:30"]
[Board "84"]

1. d4 {[%clk 0:03:00]}  d5 {[%clk 0:03:00]} 2. c4 {[%clk 0:03:00]}  e6 {[%clk 0:03:00]} 3. Nc3 {[%clk 0:02:59]}  c6 {[%clk 0:03:01]} 4. e3 {[%clk 0:02:56]}  f5 {[%clk 0:03:00]} 5. Nf3 {[%clk 0:02:55]}  Bd6 {[%clk 0:03:01]} 6. Bd3 {[%clk 0:02:55]}  Nh6 {[%clk 0:03:01]} 7. Qc2 {[%clk 0:02:52]}  g5 {[%clk 0:03:00]} 8. h4 {[%clk 0:02:41]}  g4 {[%clk 0:02:59]} 9. Ng5 {[%clk 0:02:41]}  Ng8 {[%clk 0:02:52]} 10. cxd5 {[%clk 0:02:25]}  cxd5 {[%clk 0:02:53]} 11. Nxd5 {[%clk 0:02:25]}  h6 {[%clk 0:02:33]} 12. e4 {[%clk 0:01:41]}  exd5 {[%clk 0:02:24]} 13. exf5 {[%clk 0:01:32]}  hxg5 {[%clk 0:02:24]} 14. Bxg5 {[%clk 0:01:32]}  Be7 {[%clk 0:02:14]} 15. O-O-O {[%clk 0:01:25]}  Nf6 {[%clk 0:02:04]} 16. Rde1 {[%clk 0:01:21]}  O-O {[%clk 0:02:04]} 17. Qd2 {[%clk 0:01:11]}  Nc6 {[%clk 0:01:52]} 18. Bh6 {[%clk 0:01:00]}  Rf7 {[%clk 0:01:38]} 19. h5 {[%clk 0:01:00]}  Nxd4 {[%clk 0:01:13]} 20. Qf4 {[%clk 0:00:41]}  Bf8 {[%clk 0:01:04]} 21. Bxf8 {[%clk 0:00:38]}  Qc7+ {[%clk 0:01:02]} 22. Qxc7 {[%clk 0:00:37]}  Rxc7+ {[%clk 0:01:03]} 23. Kb1 {[%clk 0:00:31]}  Kxf8 {[%clk 0:01:04]} 24. Re5 {[%clk 0:00:31]}  Bd7 {[%clk 0:00:53]} 25. h6 {[%clk 0:00:30]}  Kf7 {[%clk 0:00:51]} 26. h7 {[%clk 0:00:30]}  Rh8 {[%clk 0:00:50]} 27. Rh4 {[%clk 0:00:25]}  Rxh7 {[%clk 0:00:47]} 28. Rxh7+ {[%clk 0:00:24]}  Nxh7 {[%clk 0:00:47]} 29. Rxd5 {[%clk 0:00:24]}  Nc6 {[%clk 0:00:40]} 30. Bc4 {[%clk 0:00:21]}  Kf8 {[%clk 0:00:37]} 31. Bd3 {[%clk 0:00:17]}  Nb4 {[%clk 0:00:36]} 32. Rd4 {[%clk 0:00:17]}  Nxd3 {[%clk 0:00:37]} 33. a3 {[%clk 0:00:17]}  Bxf5 {[%clk 0:00:35]} 34. b4 {[%clk 0:00:16]}  Nf6 {[%clk 0:00:30]} 35. Ka2 {[%clk 0:00:15]}  Kf7 {[%clk 0:00:30]} 36. f3 {[%clk 0:00:13]}  g3 {[%clk 0:00:30]} 37. Rh4 {[%clk 0:00:12]}  Rc2+ {[%clk 0:00:29]} 38. Kb3 {[%clk 0:00:12]}  Rxg2 {[%clk 0:00:30]} 39. f4 {[%clk 0:00:10]}  Rf2 {[%clk 0:00:30]} 0-1


[Site "https://www.chess.com"]